[Event "*** Titled Tuesday Blitz"]
[Site "Chess.com"]
[Date "2020.10.27"]
[Round "1"]
[White "mamey78"]
[Black "GMKrikor"]
[Result "0-1"]
[WhiteElo "2407"]
[BlackElo "2781"]
[TimeControl "180+1"]
[EndTime "10:07:42 PDT"]
[Termination "GMKrikor won by resignation"]

1. e4 {[%clk 0:02:56.4]} 1... c5 {[%clk 0:02:48.1]} 2. Nf3 {[%clk 0:02:55.2]}
2... d6 {[%clk 0:02:43.5]} 3. d4 {[%clk 0:02:54.3]} 3... cxd4 {[%clk 0:02:44.4]}
4. Nxd4 {[%clk 0:02:54]} 4... Nf6 {[%clk 0:02:27.9]} 5. Nc3 {[%clk 0:02:53.6]}
5... a6 {[%clk 0:02:28.5]} 6. Bg5 {[%clk 0:02:53.3]} 6... Nbd7 {[%clk
0:02:03.6]} 7. Qe2 {[%clk 0:02:50.5]} 7... Qc7 {[%clk 0:02:01.8]} 8. O-O-O
{[%clk 0:02:47.7]} 8... e6 {[%clk 0:02:00.6]} 9. f4 {[%clk 0:02:45]} 9... b5
{[%clk 0:01:59.1]} 10. a3 {[%clk 0:02:44.2]} 10... Bb7 {[%clk 0:01:55.5]} 11. g4
{[%clk 0:02:41]} 11... Rc8 {[%clk 0:01:29.1]} 12. Bh4 {[%clk 0:02:20.8]} 12...
h6 {[%clk 0:01:17.9]} 13. Be1 {[%clk 0:01:59.7]} 13... Nb6 {[%clk 0:01:11.7]}
14. h4 {[%clk 0:01:56.4]} 14... Nfd7 {[%clk 0:01:05.5]} 15. Bg2 {[%clk
0:01:49.8]} 15... Nc4 {[%clk 0:01:02.4]} 16. g5 {[%clk 0:01:36.6]} 16... hxg5
{[%clk 0:00:53]} 17. hxg5 {[%clk 0:01:37.5]} 17... Rxh1 {[%clk 0:00:53]} 18.
Bxh1 {[%clk 0:01:37.7]} 18... g6 {[%clk 0:00:53.3]} 19. f5 {[%clk 0:01:07.4]}
19... Nc5 {[%clk 0:00:43.8]} 20. Bg2 {[%clk 0:00:45]} 20... Be7 {[%clk
0:00:34.3]} 21. Qg4 {[%clk 0:00:34.4]} 21... e5 {[%clk 0:00:34.8]} 22. Nb3
{[%clk 0:00:29.6]} 22... Ne3 {[%clk 0:00:34.3]} 23. Qh3 {[%clk 0:00:21.2]} 23...
Nxd1 {[%clk 0:00:31.9]} 24. Kxd1 {[%clk 0:00:13.6]} 24... Qd7 {[%clk 0:00:21.3]}
25. Qh8+ {[%clk 0:00:11.5]} 25... Bf8 {[%clk 0:00:21.5]} 26. Bh3 {[%clk
0:00:11]} 26... Qc7 {[%clk 0:00:16.9]} 27. fxg6 {[%clk 0:00:08.7]} 27... fxg6
{[%clk 0:00:17.8]} 28. Bxc8 {[%clk 0:00:05.8]} 28... Qxc8 {[%clk 0:00:18.7]} 29.
Qf6 {[%clk 0:00:05.5]} 29... Qe6 {[%clk 0:00:16.2]} 30. Nxc5 {[%clk 0:00:05.6]}
30... Qxf6 {[%clk 0:00:15.7]} 31. gxf6 {[%clk 0:00:06.5]} 31... dxc5 {[%clk
0:00:16.2]} 32. Bg3 {[%clk 0:00:06.3]} 32... Bd6 {[%clk 0:00:16.5]} 33. Nd5
{[%clk 0:00:06.2]} 33... Kf7 {[%clk 0:00:16.4]} 34. c4 {[%clk 0:00:04.8]} 34...
bxc4 {[%clk 0:00:16.6]} 35. Kc2 {[%clk 0:00:03.5]} 35... Ke6 {[%clk 0:00:16.8]}
36. Kc3 {[%clk 0:00:02.4]} 36... Bxd5 {[%clk 0:00:15.5]} 37. exd5+ {[%clk
0:00:03.3]} 37... Kxd5 {[%clk 0:00:16.4]} 38. f7 {[%clk 0:00:03]} 38... Ke6
{[%clk 0:00:16.7]} 39. Kxc4 {[%clk 0:00:03.7]} 39... Be7 {[%clk 0:00:12.6]} 40.
Bf2 {[%clk 0:00:02.9]} 40... Kxf7 {[%clk 0:00:12]} 41. Bxc5 {[%clk 0:00:03]}
41... Bxc5 {[%clk 0:00:11.5]} 42. Kxc5 {[%clk 0:00:03.9]} 42... Ke6 {[%clk
0:00:11.9]} 43. Kc4 {[%clk 0:00:03.6]} 43... g5 {[%clk 0:00:11.9]} 44. Kd3
{[%clk 0:00:03.5]} 44... g4 {[%clk 0:00:12.5]} 45. Ke3 {[%clk 0:00:03.4]} 45...
Kd5 {[%clk 0:00:12.6]} 46. b4 {[%clk 0:00:03.4]} 46... Kc4 {[%clk 0:00:12.3]}
0-1

[Event "*** Titled Tuesday Blitz"]
[Site "Chess.com"]
[Date "2020.10.27"]
[Round "1"]
[White "Corre_por_tu_vida"]
[Black "Vandros57"]
[Result "0-1"]
[WhiteElo "2529"]
[BlackElo "2211"]
[TimeControl "180+1"]
[EndTime "10:07:43 PDT"]
[Termination "Vandros57 won on time"]

1. e4 {[%clk 0:00:41.4]} 1... c5 {[%clk 0:02:54.9]} 2. Nf3 {[%clk 0:00:40.8]}
2... e6 {[%clk 0:02:51.8]} 3. d4 {[%clk 0:00:40.8]} 3... cxd4 {[%clk 0:02:50.9]}
4. Nxd4 {[%clk 0:00:41.7]} 4... Bc5 {[%clk 0:02:49.7]} 5. Nb3 {[%clk 0:00:40.7]}
5... Bb6 {[%clk 0:02:48.8]} 6. Nc3 {[%clk 0:00:40.1]} 6... Ne7 {[%clk
0:02:41.5]} 7. Bd3 {[%clk 0:00:39.2]} 7... Nbc6 {[%clk 0:02:36.4]} 8. O-O {[%clk
0:00:38.7]} 8... d5 {[%clk 0:02:31.8]} 9. Kh1 {[%clk 0:00:35.7]} 9... O-O {[%clk
0:02:26]} 10. f4 {[%clk 0:00:34.2]} 10... dxe4 {[%clk 0:02:21.4]} 11. Nxe4
{[%clk 0:00:35.1]} 11... Nf5 {[%clk 0:02:15.7]} 12. c3 {[%clk 0:00:32.8]} 12...
a5 {[%clk 0:02:09.9]} 13. a4 {[%clk 0:00:30.7]} 13... h6 {[%clk 0:02:04.5]} 14.
Qf3 {[%clk 0:00:29.2]} 14... Qe7 {[%clk 0:01:59.9]} 15. Bd2 {[%clk 0:00:27.5]}
15... Rd8 {[%clk 0:01:58.3]} 16. Rae1 {[%clk 0:00:27.4]} 16... Bd7 {[%clk
0:01:55.5]} 17. Bc2 {[%clk 0:00:26.7]} 17... Be8 {[%clk 0:01:53.1]} 18. Qh3
{[%clk 0:00:26.2]} 18... Qh4 {[%clk 0:01:46.8]} 19. Qf3 {[%clk 0:00:22.7]} 19...
Qe7 {[%clk 0:01:43.3]} 20. g4 {[%clk 0:00:21.9]} 20... Nd6 {[%clk 0:01:40]} 21.
g5 {[%clk 0:00:21.1]} 21... Nxe4 {[%clk 0:01:28.1]} 22. Qxe4 {[%clk 0:00:20.4]}
22... g6 {[%clk 0:01:27.2]} 23. gxh6 {[%clk 0:00:20.2]} 23... Nb4 {[%clk
0:01:19.9]} 24. h7+ {[%clk 0:00:16.4]} 24... Kxh7 {[%clk 0:01:14.6]} 25. cxb4
{[%clk 0:00:15]} 25... Bc6 {[%clk 0:01:13]} 26. f5 {[%clk 0:00:15.2]} 26...
Bxe4+ {[%clk 0:01:11.5]} 27. Rxe4 {[%clk 0:00:15.2]} 27... Rac8 {[%clk
0:00:58.8]} 28. Bc3 {[%clk 0:00:14.8]} 28... Rxc3 {[%clk 0:00:52.4]} 29. bxc3
{[%clk 0:00:14.1]} 29... Qd7 {[%clk 0:00:42.9]} 30. fxg6+ {[%clk 0:00:13.5]}
30... fxg6 {[%clk 0:00:42.2]} 31. Rf3 {[%clk 0:00:14.4]} 31... Kg7 {[%clk
0:00:39.7]} 32. Rg4 {[%clk 0:00:13.7]} 32... Qd5 {[%clk 0:00:21.6]} 33. Be4
{[%clk 0:00:11.7]} 33... Qd1+ {[%clk 0:00:20.1]} 34. Kg2 {[%clk 0:00:11.3]}
34... Rd2+ {[%clk 0:00:10.4]} 35. Nxd2 {[%clk 0:00:10.9]} 35... Qxd2+ {[%clk
0:00:10.4]} 36. Kh3 {[%clk 0:00:11.2]} 36... Qh6+ {[%clk 0:00:10]} 37. Rh4
{[%clk 0:00:10.9]} 37... Qg5 {[%clk 0:00:09.3]} 38. Rg3 {[%clk 0:00:11.8]} 38...
Qd2 {[%clk 0:00:07.1]} 39. Rxg6+ {[%clk 0:00:11.1]} 39... Kf8 {[%clk 0:00:06.7]}
0-1

[Event "*** Titled Tuesday Blitz"]
[Site "Chess.com"]
[Date "2020.10.27"]
[Round "1"]
[White "Sammed_Shete"]
[Black "MaxLeto"]
[Result "0-1"]
[WhiteElo "2645"]
[BlackElo "2330"]
[TimeControl "180+1"]
[EndTime "10:07:45 PDT"]
[Termination "MaxLeto won by resignation"]

1. e4 {[%clk 0:03:00.9]} 1... c5 {[%clk 0:02:48.7]} 2. Nf3 {[%clk 0:03:00.4]}
2... d6 {[%clk 0:02:46.2]} 3. d4 {[%clk 0:02:59.8]} 3... cxd4 {[%clk 0:02:45.8]}
4. Nxd4 {[%clk 0:03:00.7]} 4... Nf6 {[%clk 0:02:45.4]} 5. Nc3 {[%clk 0:03:01.2]}
5... a6 {[%clk 0:02:45.3]} 6. h3 {[%clk 0:03:00.6]} 6... e6 {[%clk 0:02:44]} 7.
g4 {[%clk 0:02:59.3]} 7... Nfd7 {[%clk 0:02:40.5]} 8. Bg2 {[%clk 0:02:55.6]}
8... Qc7 {[%clk 0:02:34.1]} 9. Be3 {[%clk 0:02:45.2]} 9... b5 {[%clk 0:02:33.5]}
10. Qe2 {[%clk 0:02:31.4]} 10... Bb7 {[%clk 0:02:30.9]} 11. O-O-O {[%clk
0:02:28.7]} 11... b4 {[%clk 0:02:18.7]} 12. Na4 {[%clk 0:02:28.4]} 12... Qa5
{[%clk 0:02:08]} 13. b3 {[%clk 0:02:20.8]} 13... Nc5 {[%clk 0:02:07.5]} 14. Nxc5
{[%clk 0:02:08.5]} 14... dxc5 {[%clk 0:01:52.1]} 15. Nf5 {[%clk 0:01:32.7]}
15... Qxa2 {[%clk 0:01:23.8]} 16. Qd3 {[%clk 0:01:23.1]} 16... Qa1+ {[%clk
0:01:09.7]} 17. Kd2 {[%clk 0:01:23.5]} 17... Qc3+ {[%clk 0:01:10.3]} 18. Qxc3
{[%clk 0:01:23.9]} 18... bxc3+ {[%clk 0:01:11.2]} 19. Kxc3 {[%clk 0:01:24.5]}
19... exf5 {[%clk 0:01:10.7]} 20. exf5 {[%clk 0:01:11.7]} 20... Bxg2 {[%clk
0:01:00.7]} 21. Rhe1 {[%clk 0:01:11.5]} 21... Be7 {[%clk 0:00:31.2]} 22. Bxc5
{[%clk 0:01:08]} 22... Nc6 {[%clk 0:00:31.3]} 23. Rd3 {[%clk 0:01:03.3]} 23...
Rc8 {[%clk 0:00:15.9]} 24. Kb2 {[%clk 0:00:55.8]} 24... Kf8 {[%clk 0:00:13.8]}
25. Bxe7+ {[%clk 0:00:56.1]} 25... Nxe7 {[%clk 0:00:14.7]} 26. f3 {[%clk
0:00:57]} 26... h5 {[%clk 0:00:05.7]} 27. Rd7 {[%clk 0:00:46.7]} 27... Nc6
{[%clk 0:00:04]} 28. g5 {[%clk 0:00:47.3]} 28... Bxh3 {[%clk 0:00:03.8]} 29. Rd5
{[%clk 0:00:43.5]} 29... g6 {[%clk 0:00:03.5]} 30. f6 {[%clk 0:00:43.4]} 30...
Be6 {[%clk 0:00:03.3]} 31. Rc5 {[%clk 0:00:41.6]} 31... Kg8 {[%clk 0:00:03.3]}
32. Rd1 {[%clk 0:00:39]} 32... Kh7 {[%clk 0:00:03.7]} 33. Rd6 {[%clk 0:00:39.9]}
33... Nb4 {[%clk 0:00:03.9]} 34. Rxc8 {[%clk 0:00:32.8]} 34... Rxc8 {[%clk
0:00:04.8]} 35. c3 {[%clk 0:00:33.7]} 35... Nd5 {[%clk 0:00:04.7]} 36. c4 {[%clk
0:00:33.5]} 36... Nf4 {[%clk 0:00:05.1]} 37. Rxa6 {[%clk 0:00:33]} 37... Nh3
{[%clk 0:00:04.9]} 38. Ra5 {[%clk 0:00:31.5]} 38... h4 {[%clk 0:00:04.7]} 39.
Kc3 {[%clk 0:00:31.4]} 39... Nf4 {[%clk 0:00:04.6]} 40. Kd4 {[%clk 0:00:31.3]}
40... h3 {[%clk 0:00:05]} 41. Ke3 {[%clk 0:00:32.2]} 41... Nh5 {[%clk 0:00:05]}
42. Kf2 {[%clk 0:00:31.1]} 42... Rb8 {[%clk 0:00:05.4]} 43. c5 {[%clk
0:00:29.2]} 43... Rxb3 {[%clk 0:00:05]} 44. c6 {[%clk 0:00:30.1]} 44... Rb2+
{[%clk 0:00:05]} 45. Ke3 {[%clk 0:00:29.8]} 45... Rc2 {[%clk 0:00:05.9]} 46. f4
{[%clk 0:00:28.4]} 46... h2 {[%clk 0:00:06.1]} 47. Ra1 {[%clk 0:00:28.2]} 47...
Ng3 {[%clk 0:00:06.2]} 48. c7 {[%clk 0:00:27.1]} 48... h1=Q {[%clk 0:00:06.4]}
49. Rxh1+ {[%clk 0:00:26.5]} 49... Nxh1 {[%clk 0:00:07.3]} 50. f5 {[%clk
0:00:26.8]} 50... gxf5 {[%clk 0:00:07.1]} 51. Kf4 {[%clk 0:00:27.4]} 51... Rxc7
{[%clk 0:00:06.9]} 52. Ke5 {[%clk 0:00:28.1]} 52... Kg6 {[%clk 0:00:06.9]} 53.
Kd6 {[%clk 0:00:29]} 53... Rc2 {[%clk 0:00:06.5]} 0-1

[Event "*** Titled Tuesday Blitz"]
[Site "Chess.com"]
[Date "2020.10.27"]
[Round "1"]
[White "canary2016"]
[Black "UCantHandleDenker"]
[Result "0-1"]
[WhiteElo "1962"]
[BlackElo "2510"]
[TimeControl "180+1"]
[EndTime "10:07:45 PDT"]
[Termination "UCantHandleDenker won by checkmate"]

1. d4 {[%clk 0:03:00.6]} 1... Nf6 {[%clk 0:02:56.6]} 2. c4 {[%clk 0:02:59.3]}
2... c5 {[%clk 0:02:54.9]} 3. d5 {[%clk 0:02:58.5]} 3... d6 {[%clk 0:02:55.1]}
4. Nc3 {[%clk 0:02:56.7]} 4... g6 {[%clk 0:02:55.6]} 5. Nf3 {[%clk 0:02:56]}
5... Bg7 {[%clk 0:02:56]} 6. Bf4 {[%clk 0:02:54]} 6... O-O {[%clk 0:02:56]} 7.
h3 {[%clk 0:02:53.7]} 7... e6 {[%clk 0:02:26.1]} 8. e3 {[%clk 0:02:43.8]} 8...
exd5 {[%clk 0:02:24.7]} 9. cxd5 {[%clk 0:02:43.5]} 9... a6 {[%clk 0:02:12.3]}
10. a4 {[%clk 0:02:42.9]} 10... Re8 {[%clk 0:02:09.9]} 11. Bc4 {[%clk
0:02:41.3]} 11... Bf5 {[%clk 0:02:09.4]} 12. O-O {[%clk 0:02:40]} 12... Ne4
{[%clk 0:02:06.4]} 13. Rc1 {[%clk 0:02:27.9]} 13... Nxc3 {[%clk 0:01:53.5]} 14.
bxc3 {[%clk 0:02:26.7]} 14... Qc7 {[%clk 0:01:53.9]} 15. Bb3 {[%clk 0:02:24.5]}
15... Nd7 {[%clk 0:01:48.8]} 16. Re1 {[%clk 0:02:22.1]} 16... c4 {[%clk
0:01:46.1]} 17. Bc2 {[%clk 0:02:20.3]} 17... Bxc2 {[%clk 0:01:46]} 18. Qxc2
{[%clk 0:02:19]} 18... Nc5 {[%clk 0:01:46.9]} 19. Red1 {[%clk 0:02:15.4]} 19...
b5 {[%clk 0:01:46]} 20. axb5 {[%clk 0:02:12.5]} 20... axb5 {[%clk 0:01:46.9]}
21. Nd4 {[%clk 0:02:10.6]} 21... Nd3 {[%clk 0:01:30.6]} 22. Nxb5 {[%clk
0:01:58]} 22... Qc5 {[%clk 0:01:12]} 23. Rb1 {[%clk 0:01:54.9]} 23... Nxf4
{[%clk 0:00:57.8]} 24. exf4 {[%clk 0:01:53.2]} 24... Rab8 {[%clk 0:00:57.4]} 25.
Nd4 {[%clk 0:01:37.1]} 25... Qxd5 {[%clk 0:00:56]} 26. Nf3 {[%clk 0:01:27.9]}
26... Qc5 {[%clk 0:00:53.7]} 27. Ra1 {[%clk 0:01:23.3]} 27... Rb3 {[%clk
0:00:50.5]} 28. Nd4 {[%clk 0:01:18.6]} 28... Bxd4 {[%clk 0:00:49.6]} 29. Rxd4
{[%clk 0:01:12.6]} 29... Reb8 {[%clk 0:00:49.5]} 30. Rad1 {[%clk 0:01:09.8]}
30... Rb2 {[%clk 0:00:47]} 31. Qe4 {[%clk 0:01:05.5]} 31... R8b3 {[%clk
0:00:39.3]} 32. Qf3 {[%clk 0:00:43.2]} 32... Rc2 {[%clk 0:00:37.7]} 33. Rxd6
{[%clk 0:00:40.6]} 33... Rbxc3 {[%clk 0:00:37.9]} 34. Qa8+ {[%clk 0:00:28.3]}
34... Kg7 {[%clk 0:00:38.1]} 35. R6d2 {[%clk 0:00:16.4]} 35... Rxd2 {[%clk
0:00:37.7]} 36. Rxd2 {[%clk 0:00:15.7]} 36... Rc1+ {[%clk 0:00:38.2]} 37. Kh2
{[%clk 0:00:15.1]} 37... Qf5 {[%clk 0:00:37.2]} 38. Qf3 {[%clk 0:00:11.5]} 38...
c3 {[%clk 0:00:35.7]} 39. Rd5 {[%clk 0:00:08.5]} 39... Qf6 {[%clk 0:00:35.5]}
40. Rd3 {[%clk 0:00:07]} 40... h5 {[%clk 0:00:31]} 41. g3 {[%clk 0:00:05.9]}
41... h4 {[%clk 0:00:30.3]} 42. g4 {[%clk 0:00:05.6]} 42... c2 {[%clk
0:00:30.1]} 43. g5 {[%clk 0:00:05.4]} 43... Qf5 {[%clk 0:00:27.8]} 44. Rc3
{[%clk 0:00:04.6]} 44... Rd1 {[%clk 0:00:23.4]} 45. Kg2 {[%clk 0:00:04.1]} 45...
c1=Q {[%clk 0:00:23.3]} 46. Rxc1 {[%clk 0:00:03.8]} 46... Rxc1 {[%clk
0:00:23.6]} 47. Qe3 {[%clk 0:00:04]} 47... Qd5+ {[%clk 0:00:21.7]} 48. f3 {[%clk
0:00:03.6]} 48... Rc2+ {[%clk 0:00:21.6]} 49. Kf1 {[%clk 0:00:03.1]} 49... Qd1+
{[%clk 0:00:21.6]} 50. Qe1 {[%clk 0:00:02.8]} 50... Qxf3+ {[%clk 0:00:21.8]} 51.
Kg1 {[%clk 0:00:02.3]} 51... Qg2# {[%clk 0:00:22]} 0-1

[Event "*** Titled Tuesday Blitz"]
[Site "Chess.com"]
[Date "2020.10.27"]
[Round "1"]
[White "ChessAurochs"]
[Black "Zmof"]
[Result "0-1"]
[WhiteElo "2530"]
[BlackElo "2188"]
[TimeControl "180+1"]
[EndTime "10:07:48 PDT"]
[Termination "Zmof won by checkmate"]

1. e4 {[%clk 0:03:00.9]} 1... c5 {[%clk 0:02:56.2]} 2. Nf3 {[%clk 0:02:59.9]}
2... Nc6 {[%clk 0:02:55.1]} 3. Bb5 {[%clk 0:02:59.6]} 3... g6 {[%clk 0:02:54.8]}
4. O-O {[%clk 0:02:59.3]} 4... Bg7 {[%clk 0:02:54.4]} 5. Nc3 {[%clk 0:02:59.1]}
5... e5 {[%clk 0:02:44.9]} 6. a3 {[%clk 0:02:55.9]} 6... Nge7 {[%clk 0:02:43.3]}
7. b4 {[%clk 0:02:54.6]} 7... b6 {[%clk 0:02:28.3]} 8. bxc5 {[%clk 0:02:46.9]}
8... bxc5 {[%clk 0:02:27.9]} 9. d3 {[%clk 0:02:47.3]} 9... O-O {[%clk
0:02:27.2]} 10. Bc4 {[%clk 0:02:41.7]} 10... h6 {[%clk 0:02:21.3]} 11. Nd5
{[%clk 0:02:35.5]} 11... d6 {[%clk 0:02:17.8]} 12. Bd2 {[%clk 0:02:32.2]} 12...
Be6 {[%clk 0:02:17.2]} 13. Nxe7+ {[%clk 0:02:13.3]} 13... Qxe7 {[%clk
0:02:16.4]} 14. Bd5 {[%clk 0:02:13.2]} 14... Bxd5 {[%clk 0:02:13.8]} 15. exd5
{[%clk 0:02:14.1]} 15... Nd4 {[%clk 0:02:13.8]} 16. c3 {[%clk 0:02:03.1]} 16...
Nxf3+ {[%clk 0:02:13]} 17. Qxf3 {[%clk 0:02:04]} 17... Rab8 {[%clk 0:02:10.7]}
18. Rab1 {[%clk 0:02:03.6]} 18... f5 {[%clk 0:02:07.9]} 19. Qg3 {[%clk
0:01:53.9]} 19... Kh7 {[%clk 0:02:06.7]} 20. c4 {[%clk 0:01:48.3]} 20... Rb6
{[%clk 0:02:05.8]} 21. Rxb6 {[%clk 0:01:43.5]} 21... axb6 {[%clk 0:02:05.5]} 22.
Rb1 {[%clk 0:01:43.4]} 22... Qc7 {[%clk 0:02:02.6]} 23. Qf3 {[%clk 0:01:33.5]}
23... Ra8 {[%clk 0:01:59.2]} 24. Rb3 {[%clk 0:01:32.8]} 24... Ra6 {[%clk
0:01:53]} 25. Qd1 {[%clk 0:01:32.1]} 25... Qa7 {[%clk 0:01:51.2]} 26. Qc1 {[%clk
0:01:28.7]} 26... Qa8 {[%clk 0:01:42.9]} 27. Qb2 {[%clk 0:01:28.1]} 27... e4
{[%clk 0:01:36]} 28. Bc3 {[%clk 0:01:19.9]} 28... Bxc3 {[%clk 0:01:35.1]} 29.
Qxc3 {[%clk 0:01:20.8]} 29... exd3 {[%clk 0:01:35.6]} 30. Qxd3 {[%clk
0:01:19.6]} 30... Qe8 {[%clk 0:01:34.4]} 31. g3 {[%clk 0:01:14.7]} 31... Qe1+
{[%clk 0:01:28]} 32. Kg2 {[%clk 0:01:14.7]} 32... Qe4+ {[%clk 0:01:28.4]} 33.
Qxe4 {[%clk 0:01:14.2]} 33... fxe4 {[%clk 0:01:29]} 34. Re3 {[%clk 0:01:09.6]}
34... Kg7 {[%clk 0:01:21.1]} 35. Kh3 {[%clk 0:00:42.6]} 35... Kf7 {[%clk
0:01:19.3]} 36. Kg4 {[%clk 0:00:40.1]} 36... Ra4 {[%clk 0:01:18.3]} 37. Rc3
{[%clk 0:00:38.3]} 37... Kf6 {[%clk 0:01:16.4]} 38. Kf4 {[%clk 0:00:38.5]} 38...
g5+ {[%clk 0:01:16.9]} 39. Kxe4 {[%clk 0:00:38.4]} 39... b5 {[%clk 0:01:17.5]}
40. Rf3+ {[%clk 0:00:29.6]} 40... Kg6 {[%clk 0:01:15.2]} 41. Rc3 {[%clk
0:00:24.1]} 41... bxc4 {[%clk 0:01:14]} 42. f4 {[%clk 0:00:24.1]} 42... g4
{[%clk 0:01:03.7]} 43. Ke3 {[%clk 0:00:13.1]} 43... Kf5 {[%clk 0:01:02.9]} 44.
Kd2 {[%clk 0:00:13]} 44... Ke4 {[%clk 0:01:00.1]} 45. Re3+ {[%clk 0:00:12.8]}
45... Kd4 {[%clk 0:00:58.5]} 46. f5 {[%clk 0:00:09.9]} 46... Ra7 {[%clk
0:00:49.4]} 47. Re6 {[%clk 0:00:06.5]} 47... Rxa3 {[%clk 0:00:47.9]} 48. Rxd6
{[%clk 0:00:04.6]} 48... c3+ {[%clk 0:00:46.3]} 49. Kc2 {[%clk 0:00:04.5]} 49...
Ra2+ {[%clk 0:00:46.1]} 50. Kb3 {[%clk 0:00:04.2]} 50... Rb2+ {[%clk 0:00:46.1]}
51. Ka3 {[%clk 0:00:04.1]} 51... Rb1 {[%clk 0:00:43.4]} 52. Ra6 {[%clk
0:00:01.4]} 52... c2 {[%clk 0:00:42.1]} 53. Ra4+ {[%clk 0:00:02.3]} 53... Kxd5
{[%clk 0:00:40.7]} 54. f6 {[%clk 0:00:02.5]} 54... c1=Q+ {[%clk 0:00:40.3]} 55.
Ka2 {[%clk 0:00:03.4]} 55... Ra1+ {[%clk 0:00:39.6]} 56. Kb3 {[%clk 0:00:02.9]}
56... Qd1+ {[%clk 0:00:38.8]} 57. Kb2 {[%clk 0:00:02.8]} 57... Rxa4 {[%clk
0:00:37.6]} 58. f7 {[%clk 0:00:03.1]} 58... Rb4+ {[%clk 0:00:37.7]} 59. Ka2
{[%clk 0:00:02.8]} 59... Qa4# {[%clk 0:00:37.6]} 0-1

[Event "*** Titled Tuesday Blitz"]
[Site "Chess.com"]
[Date "2020.10.27"]
[Round "1"]
[White "WildTricks"]
[Black "Funo09"]
[Result "0-1"]
[WhiteElo "2409"]
[BlackElo "2789"]
[TimeControl "180+1"]
[EndTime "10:07:55 PDT"]
[Termination "Funo09 won by checkmate"]

1. e4 {[%clk 0:03:00.9]} 1... c5 {[%clk 0:02:58.7]} 2. Nf3 {[%clk 0:03:01.1]}
2... Nf6 {[%clk 0:02:59.1]} 3. e5 {[%clk 0:03:00.3]} 3... Nd5 {[%clk 0:02:59.4]}
4. Nc3 {[%clk 0:03:01.2]} 4... e6 {[%clk 0:03:00]} 5. Ne4 {[%clk 0:03:00.8]}
5... f5 {[%clk 0:02:58.9]} 6. Nc3 {[%clk 0:02:59.8]} 6... Nxc3 {[%clk
0:02:56.5]} 7. dxc3 {[%clk 0:02:59.3]} 7... Nc6 {[%clk 0:02:56.6]} 8. Bf4 {[%clk
0:02:57]} 8... b6 {[%clk 0:02:53.6]} 9. Qd2 {[%clk 0:02:56.4]} 9... Bb7 {[%clk
0:02:52.5]} 10. O-O-O {[%clk 0:02:49.5]} 10... Qc7 {[%clk 0:02:51.5]} 11. h4
{[%clk 0:02:47.2]} 11... a6 {[%clk 0:02:47.8]} 12. h5 {[%clk 0:02:46.4]} 12...
b5 {[%clk 0:02:43.8]} 13. Kb1 {[%clk 0:02:35.3]} 13... Ne7 {[%clk 0:02:39.2]}
14. c4 {[%clk 0:02:10.2]} 14... bxc4 {[%clk 0:02:34.4]} 15. Bxc4 {[%clk
0:02:11.1]} 15... Nd5 {[%clk 0:02:34.9]} 16. Rhg1 {[%clk 0:01:53.4]} 16... g6
{[%clk 0:02:15.2]} 17. g4 {[%clk 0:01:41.4]} 17... Nb6 {[%clk 0:02:09.4]} 18.
Be2 {[%clk 0:01:40.8]} 18... c4 {[%clk 0:02:09.9]} 19. gxf5 {[%clk 0:01:33.4]}
19... gxf5 {[%clk 0:02:09.8]} 20. Qa5 {[%clk 0:01:23.6]} 20... O-O-O {[%clk
0:01:36]} 21. Ng5 {[%clk 0:01:05.6]} 21... Bc5 {[%clk 0:01:14.5]} 22. Nf7 {[%clk
0:01:00.6]} 22... Bxf2 {[%clk 0:01:12.1]} 23. Rg7 {[%clk 0:00:40.8]} 23... Rdg8
{[%clk 0:00:59.5]} 24. h6 {[%clk 0:00:34.3]} 24... Kb8 {[%clk 0:00:59.5]} 25.
Nxh8 {[%clk 0:00:29.8]} 25... Rxh8 {[%clk 0:01:00.4]} 26. Bxc4 {[%clk
0:00:17.2]} 26... Qxc4 {[%clk 0:00:53.7]} 27. Bg5 {[%clk 0:00:16.8]} 27... Rc8
{[%clk 0:00:46.6]} 28. c3 {[%clk 0:00:16]} 28... Qe4+ {[%clk 0:00:41.2]} 29. Ka1
{[%clk 0:00:15.4]} 29... Qc2 {[%clk 0:00:30.5]} 30. Rb1 {[%clk 0:00:14.9]} 30...
f4 {[%clk 0:00:24]} 31. Bxf4 {[%clk 0:00:13.6]} 31... Be4 {[%clk 0:00:15.2]} 32.
Rc1 {[%clk 0:00:11.9]} 32... Qd3 {[%clk 0:00:15.9]} 33. Bg3 {[%clk 0:00:09.3]}
33... Bc5 {[%clk 0:00:15]} 34. Bh4 {[%clk 0:00:05]} 34... Be3 {[%clk 0:00:14.4]}
35. Re1 {[%clk 0:00:04.4]} 35... Nc4 {[%clk 0:00:10.8]} 36. Qb4+ {[%clk
0:00:03.6]} 36... Bb7 {[%clk 0:00:09.5]} 37. Rxd7 {[%clk 0:00:04]} 37... Qxd7
{[%clk 0:00:09.3]} 38. Bf6 {[%clk 0:00:02.5]} 38... Bxh6 {[%clk 0:00:08.6]} 39.
Qb3 {[%clk 0:00:01.5]} 39... Bd2 {[%clk 0:00:08.4]} 40. Rb1 {[%clk 0:00:02.4]}
40... Qd3 {[%clk 0:00:08.1]} 41. Rd1 {[%clk 0:00:02.4]} 41... Qe2 {[%clk
0:00:08]} 42. Rb1 {[%clk 0:00:02.4]} 42... Be3 {[%clk 0:00:08.2]} 43. Rd1 {[%clk
0:00:01.8]} 43... Nd2 {[%clk 0:00:07.7]} 44. Qc2 {[%clk 0:00:02.2]} 44... Be4
{[%clk 0:00:07.8]} 45. Qc1 {[%clk 0:00:02.3]} 45... Nb3+ {[%clk 0:00:07.5]} 46.
axb3 {[%clk 0:00:03.2]} 46... Bxc1 {[%clk 0:00:08.1]} 47. Rxc1 {[%clk
0:00:04.1]} 47... Qd2 {[%clk 0:00:08.3]} 48. Rg1 {[%clk 0:00:03.9]} 48... Qd5
{[%clk 0:00:08.1]} 49. Rg7 {[%clk 0:00:04.3]} 49... Qa5# {[%clk 0:00:08]} 0-1